fUSD/lending_fUSD_20260116
["ID","MTS","AMOUNT","RATE_DAILY","PERIOD"]
[402189240,1768579832318,-3564.85,0.0001646,2]
[402189241,1768579832327,-550.0,0.00016461,2]
[402189242,1768579832337,-500.0,0.00016462,2]
[402189243,1768579832346,-500.0,0.00016462,2]
[402189244,1768579832355,-500.0,0.00016462,2]
[402189245,1768579832364,-500.0,0.00016462,2]
[402189246,1768579832374,-500.0,0.00016462,2]
[402189247,1768579832383,-151.0,0.00016462,2]
[402189248,1768579832392,-500.0,0.00016462,2]
[402189249,1768579832402,-500.0,0.00016462,2]
[402189250,1768579832411,-151.0,0.00016462,2]
[402189251,1768579832421,-500.0,0.00016462,2]
[402189252,1768579832430,-151.0,0.00016462,2]
[402189253,1768579832439,-500.0,0.00016462,2]
[402189254,1768579832449,-500.0,0.00016462,2]
[402189255,1768579832458,-151.0,0.00016462,2]
[402189256,1768579832467,-500.0,0.00016462,2]
[402189257,1768579832477,-200.0,0.00016462,2]
[402189258,1768579832486,-500.0,0.00016462,2]
[402189259,1768579832495,-500.0,0.00016462,2]
[402189260,1768579832505,-151.0,0.00016462,2]
[402189261,1768579832514,-248.09039622,0.00016462,2]
[402189262,1768579832523,-500.0,0.00016462,2]
[402189263,1768579832533,-151.0,0.00016462,2]
[402189264,1768579832542,-151.0,0.00016462,2]
[402189265,1768579832551,-500.0,0.00016462,2]
[402189266,1768579832560,-500.0,0.00016462,2]
[402189267,1768579832570,-151.0,0.00016462,2]
[402189268,1768579832579,-151.0,0.00016462,2]
[402189269,1768579832588,-151.0,0.00016462,2]
[402189270,1768579832598,-151.0,0.00016462,2]
[402189271,1768579832607,-151.0,0.00016462,2]
[402189272,1768579832617,-151.0,0.00016462,2]
[402189273,1768579832626,-151.0,0.00016462,2]
[402189274,1768579832635,-151.0,0.00016462,2]
[402189275,1768579832645,-182.09059716,0.00016462,2]
[402189276,1768579832654,-500.0,0.00016462,2]
[402189277,1768579832663,-200.0,0.00016462,2]
[402189278,1768579832672,-2482.63707895,0.0001647,2]
[402189279,1768579832682,-13308.42587762,0.00016472,2]
[402189280,1768579832694,-254.72572641,0.00016472,2]
[402189281,1768579832705,-622.55672686,0.00016472,2]
[402189282,1768579832716,-532.05879825,0.00016472,2]
[402189283,1768579832742,-3054.58655148,0.00016472,2]
[402189284,1768579832753,-2423.67296601,0.00016472,2]
[402189285,1768579832764,-9652.00722466,0.00016472,2]
[402189286,1768579832807,-2092.6274891,0.00016472,2]
[402189287,1768579832819,-1826.92164788,0.00016472,2]
[402189288,1768579832830,-2992.08608793,0.00016472,2]
[402189291,1768579837876,-151.0,0.00016251,2]
[402189292,1768579837887,-151.0,0.00016251,2]
[402189293,1768579837897,-84390.52984613,0.00016472,2]
[402189294,1768579837906,-211.81856156,0.00016552,2]
[402189295,1768579837917,-169.35,0.00016642,3]
[402189296,1768579837927,-2500.0,0.00016653,2]
[402189297,1768579837936,-456.46564164,0.00016688,2]
[402189298,1768579837946,-500.0,0.00016688,2]
[402189299,1768579837955,-500.0,0.00016688,2]
[402189300,1768579837964,-500.0,0.00016688,2]
[402189301,1768579837973,-500.0,0.00016688,2]
[402189302,1768579837982,-500.0,0.00016688,2]
[402189303,1768579837991,-500.0,0.00016688,2]
[402189304,1768579838001,-500.0,0.00016688,2]
[402189305,1768579838011,-500.0,0.00016688,2]
[402189306,1768579838021,-500.0,0.00016688,2]
[402189307,1768579838030,-500.0,0.00016688,2]
[402189308,1768579838040,-500.0,0.00016688,2]
[402189309,1768579838049,-500.0,0.00016688,2]
[402189310,1768579838058,-500.0,0.00016688,2]
[402189311,1768579838068,-500.0,0.00016688,2]
[402189312,1768579838077,-500.0,0.00016688,2]
[402189313,1768579838087,-500.0,0.00016688,2]
[402189314,1768579838096,-500.0,0.00016688,2]
[402189315,1768579838105,-500.0,0.00016688,2]
[402189316,1768579838115,-500.0,0.00016688,2]
[402189317,1768579838124,-500.0,0.00016688,2]
[402189318,1768579838134,-500.0,0.00016688,2]
[402189319,1768579838143,-500.0,0.00016688,2]
[402189320,1768579838153,-500.0,0.00016688,2]
[402189321,1768579838163,-500.0,0.00016688,2]
[402189322,1768579838173,-500.0,0.00016688,2]
[402189323,1768579838182,-500.0,0.00016688,2]
[402189324,1768579838192,-500.0,0.00016688,2]
[402189325,1768579838202,-500.0,0.00016688,2]
[402189326,1768579838212,-500.0,0.00016688,2]
[402189327,1768579838221,-500.0,0.00016688,2]
[402189328,1768579838231,-500.0,0.00016688,2]
[402189329,1768579838242,-500.0,0.00016688,2]
[402189330,1768579838252,-500.0,0.00016688,2]
[402189331,1768579838262,-500.0,0.00016688,2]
[402189332,1768579838272,-462.93494599,0.00016688,2]
[402189333,1768579838282,-500.0,0.00016688,2]
[402189334,1768579838292,-500.0,0.00016688,2]
[402189335,1768579838302,-500.0,0.00016688,2]
[402189336,1768579838312,-500.0,0.00016688,2]
[402189337,1768579838322,-500.0,0.00016688,2]
[402189338,1768579838332,-500.0,0.00016688,2]
[402189339,1768579838341,-500.0,0.00016688,2]
[402189340,1768579838351,-500.0,0.00016688,2]
[402189341,1768579838361,-500.0,0.00016688,2]
[402189343,1768579838371,-247.0554338,0.00016725,2]
[402189345,1768579838380,-200.37,0.00016742,2]
[402189347,1768579838389,-500.0,0.00016753,2]
[402189349,1768579838398,-500.0,0.00016753,2]
[402189351,1768579838407,-500.0,0.00016753,2]
[402189353,1768579838416,-248660.23,0.00016753,2]
[402189355,1768579838426,-247.05543378,0.00016893,2]
[402189356,1768579838435,-219.41,0.00016893,2]
[402189357,1768579838445,-171.06,0.00016917,2]
[402189359,1768579838455,-990.0,0.00016966,2]
[402189361,1768579838465,-1200.78309976,0.00016976,2]
[402189363,1768579838474,-990.0,0.00017006,2]
[402189365,1768579838484,-500.0,0.0001701,2]
[402189367,1768579838493,-200.37,0.00017016,2]
[402189369,1768579838504,-990.0,0.00017044,2]
[402189371,1768579838513,-247.05543378,0.00017061,2]
[402189373,1768579838522,-1000.0,0.00017099,2]
[402189375,1768579838531,-1000.0,0.00017099,2]
[402189376,1768579838540,-1000.0,0.00017099,2]
[402189378,1768579838549,-1000.0,0.00017099,2]
[402189380,1768579838559,-1000.0,0.00017099,2]
[402189382,1768579838568,-1000.0,0.00017099,2]
[402189384,1768579838577,-1000.0,0.00017099,2]
[402189386,1768579838587,-500.0,0.00017099,2]
[402189388,1768579838596,-1500.0,0.00017099,2]
[402189390,1768579838606,-1500.0,0.00017099,2]
[402189392,1768579838615,-1500.0,0.00017099,2]
[402189394,1768579838624,-1500.0,0.00017099,2]
[402189396,1768579838633,-1500.0,0.00017099,2]
[402189398,1768579838641,-1500.0,0.00017099,2]
[402189400,1768579838651,-1500.0,0.00017099,2]
[402189402,1768579838660,-1500.0,0.00017099,2]
[402189404,1768579838669,-1500.0,0.00017099,2]
[402189406,1768579838678,-1500.0,0.00017099,2]
[402189408,1768579838687,-1500.0,0.00017099,2]
[402189410,1768579838696,-322.6107,0.00017099,2]
[402189412,1768579838706,-174.61919142,0.00017099,2]
[402189414,1768579838716,-500.0,0.00017099,2]
[402189416,1768579838725,-1000.0,0.00017099,2]
[402189418,1768579838735,-500.0,0.00017099,2]
[402189420,1768579838744,-574.12855637,0.00017099,2]
[402189422,1768579838755,-500.0,0.00017099,2]
[402189424,1768579838765,-1000.0,0.00017099,2]
[402189426,1768579838774,-500.0,0.00017099,2]
[402189427,1768579838783,-500.0,0.00017099,2]
[402189429,1768579838793,-1000.0,0.00017099,2]
[402189431,1768579838803,-500.0,0.00017099,2]
[402189433,1768579838812,-507.70133898,0.00017099,2]
[402189435,1768579838821,-1000.0,0.00017099,2]
[402189437,1768579838831,-500.0,0.00017099,2]
[402189439,1768579838843,-1000.0,0.00017099,2]
[402189441,1768579838853,-500.0,0.00017099,2]
[402189443,1768579838863,-1000.0,0.00017099,2]
[402189445,1768579838872,-620.0,0.00017099,2]
[402189447,1768579838883,-500.0,0.00017099,2]
[402189449,1768579838892,-1000.0,0.00017099,2]
[402189450,1768579838901,-500.0,0.00017099,2]
[402189452,1768579838911,-1000.0,0.00017099,2]
[402189454,1768579838921,-500.0,0.00017099,2]
[402189456,1768579838931,-1000.0,0.00017099,2]
[402189458,1768579838940,-500.0,0.00017099,2]
[402189460,1768579838950,-1000.0,0.00017099,2]
[402189462,1768579838960,-500.0,0.00017099,2]
[402189464,1768579838970,-1000.0,0.00017099,2]
[402189466,1768579838979,-500.0,0.00017099,2]
[402189468,1768579838989,-500.0,0.00017099,2]
[402189470,1768579838998,-500.0,0.00017099,2]
[402189472,1768579839008,-500.0,0.00017099,2]
[402189474,1768579839017,-555.68208505,0.00017099,2]
[402189476,1768579839027,-1239.0,0.00017099,2]
[402189478,1768579839036,-250.0,0.00017099,2]
[402189480,1768579839045,-306.14380651,0.00017099,2]
[402189482,1768579839055,-250.0,0.00017099,2]
[402189484,1768579839064,-548.44734466,0.00017099,2]
[402189486,1768579839073,-250.0,0.00017099,2]
[402189488,1768579839082,-250.0,0.00017099,2]
[402189490,1768579839092,-250.0,0.00017099,2]
[402189492,1768579839101,-250.0,0.00017099,2]
[402189493,1768579839111,-250.0,0.00017099,2]
[402189495,1768579839120,-250.0,0.00017099,2]
[402189497,1768579839129,-250.0,0.00017099,2]
[402189499,1768579839139,-250.0,0.00017099,2]
[402189501,1768579839148,-2000.0,0.00017099,2]
[402189503,1768579839157,-250.0,0.00017099,2]
[402189505,1768579839168,-2000.0,0.00017099,2]
[402189507,1768579839177,-2000.0,0.00017099,2]
[402189509,1768579839186,-2000.0,0.00017099,2]
[402189511,1768579839195,-2000.0,0.00017099,2]
[402189513,1768579839205,-2000.0,0.00017099,2]
[402189515,1768579839214,-250.0,0.00017099,2]
[402189517,1768579839223,-1500.0,0.00017099,2]
[402189519,1768579839233,-250.0,0.00017099,2]
[402189521,1768579839242,-250.0,0.00017099,2]
[402189523,1768579839252,-250.0,0.00017099,2]
[402189525,1768579839263,-250.0,0.00017099,2]
[402189527,1768579839273,-250.0,0.00017099,2]
[402189529,1768579839283,-250.0,0.00017099,2]
[402189531,1768579839292,-250.0,0.00017099,2]
[402189533,1768579839301,-250.0,0.00017099,2]
[402189535,1768579839310,-250.0,0.00017099,2]
[402189537,1768579839320,-250.0,0.00017099,2]
[402189539,1768579839329,-990.0,0.00017124,2]
[402189541,1768579839338,-1226.00103994,0.00017124,2]
[402189543,1768579839347,-209.03,0.00017196,2]
[402189545,1768579839356,-247.05543378,0.00017229,2]
[402189547,1768579839367,-2503.91981888,0.00017289,2]
[402189549,1768579839375,-200.37,0.0001729,2]
[402189551,1768579839385,-990.0,0.00017294,2]
[402189553,1768579839394,-206.35,0.00017297,2]
[402189555,1768579839403,-990.0,0.00017304,2]
[402189557,1768579839412,-990.0,0.00017315,2]
[402189559,1768579839421,-990.0,0.00017316,2]
[402189561,1768579839430,-247.05543378,0.00017396,2]
[402189563,1768579839439,-1000.0,0.00017419,2]
[402189565,1768579839448,-403.16025657,0.00017499,2]
[402189567,1768579839457,-207.58974413,0.00017499,2]
[402189569,1768579839467,-2000.0,0.000175,2]
[402189571,1768579839476,-86388.97884832,0.000175,2]
[402189613,1768579839834,-254.18043806,0.000175,2]
[402189615,1768579839848,-492.83668616,0.000175,2]
[402189617,1768579839860,-1887.66,0.000175,2]
[402189656,1768579840210,-358.33485164,0.000175,2]
[402189659,1768579840221,-996.09922521,0.000175,2]
[402189661,1768579840234,-9621.90995061,0.000175,2]
[402189663,1768579840244,-150.0,0.00017509,2]
[402189665,1768579840255,-150.0,0.00017539,2]
[402189667,1768579840264,-420.0,0.00017554,2]
[402189669,1768579840273,-500.0,0.00017558,2]
[402189671,1768579840282,-150.0,0.00017561,2]
[402189673,1768579840291,-247.05543378,0.00017564,2]
[402189675,1768579840301,-550.0,0.0001758,2]
[402189677,1768579840311,-176.105,0.0001761,2]
[402189679,1768579840320,-250.0,0.00017626,2]
[402189681,1768579840329,-2170.732,0.0001764,2]
[402189682,1768579840338,-250.0,0.00017644,2]
[402189685,1768579840349,-232.89340722,0.00017644,2]
[402189687,1768579840358,-300.0,0.00017644,2]
[402189689,1768579840367,-300.0,0.00017644,2]
[402189691,1768579840376,-300.0,0.00017644,2]
[402189693,1768579840385,-600.0,0.00017644,2]
[402189695,1768579840395,-195.0,0.00017644,2]
[402189697,1768579840403,-278.81378229,0.00017644,2]
[402189699,1768579840412,-256.05206703,0.00017647,2]
[402189701,1768579840424,-339.31924593,0.00017647,2]
[402189703,1768579840434,-1680.0,0.00017659,2]
[402189705,1768579840443,-195.0,0.00017663,2]
[402189707,1768579840452,-1469.89,0.00017667,2]
[402189709,1768579840461,-279.63860824,0.00017691,2]
[402189711,1768579840470,-150.0,0.00017699,2]
[402189713,1768579840479,-1291.73214583,0.00017699,2]
[402189715,1768579840490,-58.26785417,0.00017699,2]
[402189717,1768579840500,-150.0,0.00017699,2]
[402189719,1768579840509,-500.0,0.00017699,2]
[402189721,1768579840518,-1000.0,0.00017726,2]
[402189723,1768579840528,-1000.0,0.00017726,2]
[402189725,1768579840537,-632.80389683,0.00017726,2]
[402189727,1768579840548,-367.19610317,0.00017726,2]
[402189729,1768579840557,-1000.0,0.00017729,2]
[402189731,1768579840566,-291.73214583,0.0001773,14]
[402189767,1768579841269,-2782.18,0.00016452,2]
[402189768,1768579841280,-355.1658516,0.00016452,2]
[402189769,1768579841395,-1329.5,0.00016452,2]
[402189770,1768579841407,-5207.86708016,0.00016452,2]
[402189771,1768579841416,-1000.0,0.0001743,2]
[402189772,1768579841425,-1000.0,0.0001743,2]
[402189773,1768579841434,-375.453,0.0001743,2]
[402189774,1768579841443,-121.0934444,0.0001773,14]
[402189775,1768579841452,-1089.45326416,0.0001773,14]
[402189776,1768579841462,-1921.924695,0.0001773,14]
[402189777,1768579841471,-2875.08440096,0.0001773,14]
[402189778,1768579841480,-3890.0862,0.0001773,14]
[402189779,1768579841490,-150.0,0.0001773,2]
[402189780,1768579841499,-247.05543378,0.00017732,2]
[402189781,1768579841509,-150.0,0.00017754,2]
[402189782,1768579841518,-1350.0,0.00017754,2]
[402189783,1768579841527,-150.0,0.00017754,2]
[402189784,1768579841536,-591.25053478,0.00017754,2]
[402189785,1768579841546,-1000.0,0.00017754,2]
[402189786,1768579841555,-1000.0,0.00017754,2]
[402189787,1768579841563,-1000.0,0.00017755,2]
[402189788,1768579841573,-1000.0,0.00017755,2]
[402189789,1768579841582,-1000.0,0.00017761,2]
[402189790,1768579841591,-1000.0,0.00017763,2]
[402189791,1768579841601,-1000.0,0.00017767,2]
[402189792,1768579841610,-1000.0,0.00017769,2]
[402189793,1768579841619,-1000.0,0.0001777,2]
[402189794,1768579841628,-1000.0,0.00017771,2]
[402189795,1768579841637,-1000.0,0.00017772,2]
[402189796,1768579841646,-990.0,0.00017777,2]
[402189797,1768579841656,-182.39172636,0.0001778,2]
[402189798,1768579841665,-1000.0,0.00017781,2]
[402189799,1768579841674,-150.0,0.00017783,2]
[402189800,1768579841684,-1000.0,0.00017787,2]
[402189801,1768579841693,-151.0,0.00017787,2]
[402189802,1768579841702,-500.0,0.00017789,2]
[402189803,1768579841711,-241.25441779,0.00017789,2]
[402189804,1768579841720,-500.0,0.00017789,2]
[402189805,1768579841729,-418.74799676,0.00017789,2]
[402189806,1768579841738,-500.0,0.00017789,2]
[402189808,1768579841748,-599.37220097,0.00017789,2]
[402189810,1768579841758,-1000000.0,0.0001779,2]
[402189812,1768579841768,-1000.0,0.00017792,2]
[402189813,1768579841777,-376.70959982,0.00017792,2]
[402189814,1768579841786,-1000.0,0.00017795,2]
[402189815,1768579841795,-1202.0,0.000178,2]
[402189816,1768579841804,-915.0,0.000178,2]
[402189817,1768579841813,-4824.0,0.000178,2]
[402189818,1768579841823,-566.0,0.000178,2]
[402189819,1768579841832,-2439.0,0.000178,2]
[402189820,1768579841843,-1000.0,0.00017806,2]
[402189821,1768579841854,-232.10625522,0.00017809,2]
[402189822,1768579841863,-1350.0,0.00017809,2]
[402189823,1768579841872,-208.05358587,0.00017809,2]
[402189824,1768579841883,-1000.0,0.00017813,2]
[402189825,1768579841893,-1000.0,0.00017813,2]
[402189826,1768579841903,-1000.0,0.00017814,2]
[402189827,1768579841912,-1000.0,0.00017815,2]
[402189828,1768579841924,-1333.33333,0.0001782,2]
[402189829,1768579841933,-1333.33333,0.0001782,2]
[402189830,1768579841943,-1000.0,0.00017821,2]
[402189831,1768579841953,-1000.0,0.00017824,2]
[402189832,1768579841963,-1000.0,0.00017827,2]
[402189833,1768579841972,-1000.0,0.0001783,2]
[402189834,1768579841981,-1000.0,0.00017832,2]
[402189835,1768579841990,-1000.0,0.00017833,2]
[402189836,1768579841999,-1000.0,0.00017836,2]
[402189837,1768579842009,-1000.0,0.00017839,2]
[402189838,1768579842018,-1000.0,0.00017839,2]
[402189839,1768579842028,-376.7095998,0.00017846,2]
[402189840,1768579842039,-1000.0,0.00017848,2]
[402189841,1768579842051,-1000.0,0.00017851,2]
[402189842,1768579842061,-1000.0,0.00017852,2]
[402189843,1768579842070,-1000.0,0.00017857,2]
[402189844,1768579842080,-1000.0,0.00017858,2]
[402189845,1768579842090,-1350.0,0.00017863,2]
[402189846,1768579842099,-1000.0,0.00017868,2]
[402189847,1768579842109,-1000.0,0.00017874,2]
[402189848,1768579842119,-1000.0,0.00017874,2]
[402189849,1768579842130,-1000.0,0.00017879,2]
[402189850,1768579842139,-25000.0,0.00017882,3]
[402189851,1768579842148,-1000.0,0.00017889,2]
[402189852,1768579842158,-25000.0,0.00017891,3]
[402189853,1768579842167,-1000.0,0.00017892,2]
[402189854,1768579842177,-1000.0,0.00017893,2]
[402189855,1768579842186,-1000.0,0.00017893,2]
[402189856,1768579842195,-990.0,0.00017896,2]
[402189857,1768579842204,-1000.0,0.00017899,2]
[402189858,1768579842214,-11115.9899,0.000179,2]
[402189859,1768579842223,-25000.0,0.000179,3]
[402189860,1768579842233,-1000.0,0.000179,2]
[402189861,1768579842242,-3219.2216,0.000179,2]
[402189862,1768579842252,-10000.0,0.000179,2]
[402189863,1768579842261,-25000.0,0.000179,3]
[402189864,1768579842270,-376.7095998,0.000179,2]
[402189865,1768579842280,-184.87505215,0.000179,3]
[402189866,1768579842289,-372.4038235,0.000179,2]
[402189867,1768579842299,-212.81323909,0.000179,2]
[402189868,1768579842308,-247.05543378,0.000179,2]
[402189869,1768579842317,-316.10254282,0.000179,2]
[402189870,1768579842326,-2330.54871604,0.000179,2]
[402189871,1768579842336,-5625.0,0.000179,2]
[402189872,1768579842346,-1000.0,0.00017902,2]
[402189873,1768579842355,-1000.0,0.00017905,2]
[402189874,1768579842364,-1000.0,0.00017905,2]
[402189875,1768579842373,-1000.0,0.0001791,2]
[402189876,1768579842383,-1000.0,0.00017916,2]
[402189877,1768579842392,-1350.0,0.00017918,2]
[402189878,1768579842402,-1000.0,0.0001792,2]
[402189879,1768579842412,-1000.0,0.00017928,2]
[402189880,1768579842422,-1000.0,0.0001793,2]
[402189881,1768579842431,-589.5,0.00017933,2]
[402189882,1768579842441,-990.0,0.00017942,2]
[402189883,1768579842450,-1000.0,0.00017946,2]
[402189884,1768579842460,-1000.0,0.00017947,2]
[402189885,1768579842471,-1000.0,0.00017947,2]
[402189886,1768579842481,-1000.0,0.00017948,2]
[402189887,1768579842490,-1000.0,0.00017949,2]
[402189888,1768579842502,-1000.0,0.00017951,2]
[402189889,1768579842511,-1000.0,0.00017957,2]
[402189890,1768579842520,-1000.0,0.00017959,2]
[402189891,1768579842529,-1000.0,0.00017964,2]
[402189892,1768579842539,-1000.0,0.0001797,2]
[402189893,1768579842548,-1350.0,0.00017973,2]
[402189894,1768579842558,-1000.0,0.00017974,2]
[402189895,1768579842567,-1000.0,0.00017977,2]
[402189896,1768579842577,-1000.0,0.00017977,2]
[402189897,1768579842586,-1000.0,0.00017979,2]
[402189898,1768579842595,-1000.0,0.00017979,2]
[402189899,1768579842605,-1000.0,0.00017982,2]
[402189900,1768579842614,-156.71374248,0.00017982,2]
[402189901,1768579842623,-1000.0,0.00017987,2]
[402189903,1768579842632,-150.0,0.00017993,2]
[402189905,1768579842642,-1000.0,0.00017997,2]
[402189907,1768579842651,-151.0,0.00017997,2]
[402189909,1768579842661,-13991.4561592,0.00017998,2]
[402189911,1768579842670,-8386.6384117,0.00017998,2]
[402189912,1768579842679,-157.4432222,0.00017998,2]
[402189914,1768579842688,-16764.8910938,0.00017998,2]
[402189915,1768579842697,-2733.2594438,0.00017998,2]
[402189916,1768579842707,-178.88471166,0.00017999,5]
[402189917,1768579842716,-1110.78417922,0.00017999,5]
[402189918,1768579842725,-1110.78417922,0.00017999,5]
[402189919,1768579842734,-1110.78417922,0.00017999,5]
[402189920,1768579842743,-1110.78417922,0.00017999,5]
[402189921,1768579842752,-1110.78417922,0.00017999,5]
[402189922,1768579842762,-1000.0,0.00017999,2]
[402189923,1768579842771,-1000.0,0.00017999,2]
[402189924,1768579842780,-671.00190679,0.00017999,2]
[402189925,1768579842789,-300.0,0.00017999,2]
[402189926,1768579842798,-670.59480173,0.00017999,2]
[402189927,1768579842807,-5598369.8076878,0.00018,2]
[402189930,1768579842892,-603.9459179,0.00018,2]
[402189937,1768579843968,-558.16701226,0.00017949,2]
[402189938,1768579843979,-441.83298774,0.00017949,2]
[402189939,1768579843988,-1000.0,0.00017949,2]
[402189940,1768579843997,-1000.0,0.00017949,2]
[402189941,1768579844007,-1000.0,0.00017949,2]
[402189942,1768579844016,-131.29258639,0.00017949,2]
[402189943,1768579844027,-868.70741361,0.00017949,2]
[402189944,1768579844036,-752.305,0.00017949,2]
[402189945,1768579844046,-4481.19838731,0.00018,2]
[402189946,1768579844057,-437.98558936,0.00018,2]
[402189947,1768579844133,-300.790192,0.00018,2]
[402189948,1768579844144,-2526.86598437,0.00018,2]
[402189949,1768579844179,-894.65837861,0.00018,2]
[402189950,1768579844190,-2010.85752798,0.00018,2]
[402189953,1768579845900,-8072.90433036,0.00016613,2]
[402189954,1768579846084,-314.7886194,0.00016613,2]
[402189955,1768579846133,-1133.92363278,0.00016613,2]
[402189956,1768579846144,-153.09634921,0.00016613,2]
[402189957,1768579846154,-5071.39250245,0.00016793,2]
[402189958,1768579846163,-5793.21930223,0.000178,2]
[402189959,1768579846201,-534.0,0.000178,2]
[402189960,1768579846389,-231.78069777,0.000178,2]
[402189961,1768579846398,-4698.40188231,0.00018,2]
[402189963,1768579935762,500.0,0.00015773,2]
[402189964,1768579987225,503.14932321,0.00015773,2]
[402189965,1768579987864,500.0,0.00015773,2]
[402189966,1768580001320,1110.39,0.00030136,120]
[402189967,1768580020038,999.0,0.00030137,120]
[402189968,1768580054001,999.0,0.00030137,120]
[402189969,1768580104210,-6337.90198032,0.00017333,7]
[402189970,1768580104241,-15034.09801968,0.00017833,14]
[402189971,1768580110763,507.14568569,0.00015773,2]
[402189972,1768580229627,500.0,0.00015773,2]
[402189973,1768580231876,1000.0,0.00015918,2]
[402189974,1768580295656,200.0,0.00015572,2]
[402189975,1768580351397,500.0,0.00015773,2]
[402189976,1768580351644,150.0,0.00015572,2]
[402189977,1768580405202,159.95,0.00028596,120]
[402189978,1768580407179,500.0,0.00015773,2]
[402189980,1768580442496,2229.493365,0.00030137,120]
[402189981,1768580470286,500.0,0.00015773,2]
[402189982,1768580547283,200.0,0.00015478,2]
[402189983,1768580590993,500.0,0.00015773,2]
[402189984,1768580609013,153.41,0.00015449,2]
[402189985,1768580716424,500.0,0.00015773,2]
[402189986,1768580814598,3240.0,0.00015417,2]
[402189987,1768580834532,500.0,0.00015773,2]
[402189989,1768580956842,500.0,0.00015773,2]
[402189990,1768580959821,16521.42905896,0.0001743,30]
[402189991,1768580960611,29145.75920756,0.0001743,30]
[402189992,1768580961396,43600.31268115,0.0001743,30]
[402189993,1768580962128,13087.60542817,0.0001743,30]
[402189994,1768580962161,2500.0,0.0001743,30]
[402189995,1768580962188,2500.0,0.0001743,30]
[402189996,1768580962214,2500.0,0.0001743,30]
[402189997,1768580962243,2500.0,0.0001743,30]
[402189998,1768580962269,2500.0,0.0001743,30]
[402189999,1768580962323,33405.16797183,0.0001743,30]
[402190000,1768581011885,457.184182,0.00015948,2]
[402190016,1768581031949,-300.0,0.00016029,2]
[402190017,1768581031959,-47.1382761,0.00016029,2]
[402190018,1768581031971,-377.07987972,0.00016029,2]
[402190019,1768581031980,-284.0,0.00016029,2]
[402190020,1768581031990,-300.0,0.00016049,2]
[402190021,1768581031999,-2430.1117,0.0001609,2]
[402190022,1768581032009,-211.81856156,0.000161,2]
[402190023,1768581032018,-195.0,0.00016116,2]
[402190024,1768581032028,-250.0,0.00016116,2]
[402190025,1768581032038,-600.0,0.00016132,2]
[402190026,1768581032048,-195.0,0.00016145,2]
[402190027,1768581032060,-3588.76802995,0.00016154,2]
[402190028,1768581032069,-300.0,0.00016159,2]
[402190029,1768581032079,-600.0,0.0001616,2]
[402190030,1768581032088,-601.67255279,0.0001616,2]
[402190031,1768581032098,-73048.85014598,0.00016162,2]
[402190032,1768581032151,-926951.14985402,0.00016162,2]
[402190033,1768581032160,-1200.0,0.00016163,2]
[402190034,1768581032170,-233.81304694,0.00016164,2]
[402190035,1768581032179,-300.0,0.00016199,2]
[402190036,1768581032189,-271.0,0.00016199,2]
[402190037,1768581032198,-300.0,0.00016199,2]
[402190038,1768581032207,-12789.04725285,0.000162,5]
[402190039,1768581032216,-1000.0,0.0001626,2]
[402190041,1768581032225,-550.0,0.0001626,2]
[402190043,1768581032235,-18139.09443754,0.00016261,2]
[402190045,1768581032244,-2426.166,0.00016261,2]
[402190047,1768581032254,-3462.5452,0.00016261,2]
[402190049,1768581032263,-2500.0,0.00016262,2]